[Event "*** SCC Grand Prix: Titled Tuesday Blitz"]
[Site "Chess.com"]
[Date "2020.07.07"]
[Round "3"]
[White "allvim"]
[Black "biaf13"]
[Result "1-0"]
[WhiteElo "2263"]
[BlackElo "1946"]
[TimeControl "180+1"]
[EndTime "10:26:42 PDT"]
[Termination "allvim won by resignation"]

1. b3 {[%clk 0:03:00.6]} 1... Nf6 {[%clk 0:02:54.5]} 2. Bb2 {[%clk 0:03:01.5]}
2... e6 {[%clk 0:02:53.4]} 3. Nf3 {[%clk 0:02:57.9]} 3... Be7 {[%clk 0:02:53.2]}
4. e3 {[%clk 0:02:57]} 4... d5 {[%clk 0:02:52.7]} 5. c4 {[%clk 0:02:52.8]} 5...
O-O {[%clk 0:02:44.7]} 6. Nc3 {[%clk 0:02:50.6]} 6... c5 {[%clk 0:02:37.7]} 7.
h4 {[%clk 0:02:46.8]} 7... Nc6 {[%clk 0:02:36.2]} 8. Qc2 {[%clk 0:02:31.9]} 8...
b6 {[%clk 0:02:20.5]} 9. Ng5 {[%clk 0:02:24.9]} 9... h6 {[%clk 0:01:48.1]} 10.
a3 {[%clk 0:02:24]} 10... d4 {[%clk 0:01:25.8]} 11. Nce4 {[%clk 0:02:10.9]}
11... d3 {[%clk 0:01:06.1]} 12. Bxd3 {[%clk 0:02:08.4]} 12... hxg5 {[%clk
0:00:54.1]} 13. hxg5 {[%clk 0:02:08.8]} 13... Nh7 {[%clk 0:00:14.1]} 14. Nf6+
{[%clk 0:01:55.4]} 14... Nxf6 {[%clk 0:00:05.1]} 15. gxf6 {[%clk 0:01:54.3]}
15... Bxf6 {[%clk 0:00:03.8]} 16. Bh7+ {[%clk 0:01:54.8]} 16... Kh8 {[%clk
0:00:03.3]} 17. Bg8+ {[%clk 0:01:55.7]} 1-0

[Event "*** SCC Grand Prix: Titled Tuesday Blitz"]
[Site "Chess.com"]
[Date "2020.07.07"]
[Round "3"]
[White "Boudicca64"]
[Black "DenLaz"]
[Result "0-1"]
[WhiteElo "1805"]
[BlackElo "2685"]
[TimeControl "180+1"]
[EndTime "10:26:44 PDT"]
[Termination "DenLaz won by checkmate"]

1. e4 {[%clk 0:03:00.9]} 1... e5 {[%clk 0:02:59.6]} 2. d4 {[%clk 0:02:59.4]}
2... Nc6 {[%clk 0:03:00.5]} 3. dxe5 {[%clk 0:02:58.2]} 3... Nxe5 {[%clk
0:03:00.3]} 4. f4 {[%clk 0:02:58.4]} 4... Ng6 {[%clk 0:03:00.4]} 5. Bc4 {[%clk
0:02:57.7]} 5... Nf6 {[%clk 0:02:52.1]} 6. e5 {[%clk 0:02:55.6]} 6... c6 {[%clk
0:02:51.2]} 7. exf6 {[%clk 0:02:53.4]} 7... Qxf6 {[%clk 0:02:51.8]} 8. Ne2
{[%clk 0:02:34.8]} 8... d5 {[%clk 0:02:51.2]} 9. Bd3 {[%clk 0:02:32.1]} 9... Bc5
{[%clk 0:02:51.5]} 10. c3 {[%clk 0:02:03.1]} 10... Nh4 {[%clk 0:02:49.9]} 11.
Kf1 {[%clk 0:01:51.4]} 11... O-O {[%clk 0:02:43.3]} 12. Qc2 {[%clk 0:01:46.2]}
12... h6 {[%clk 0:02:38.9]} 13. Nd2 {[%clk 0:01:33.2]} 13... Bg4 {[%clk
0:02:34.4]} 14. Nb3 {[%clk 0:01:29.4]} 14... Bb6 {[%clk 0:02:31.7]} 15. h3
{[%clk 0:01:26.9]} 15... Bxe2+ {[%clk 0:02:30.3]} 16. Bxe2 {[%clk 0:01:25.3]}
16... Nf5 {[%clk 0:02:29]} 17. g4 {[%clk 0:01:10.8]} 17... Ng3+ {[%clk
0:02:28.1]} 18. Kg2 {[%clk 0:01:10.5]} 18... Nxh1 {[%clk 0:02:26.7]} 19. Kxh1
{[%clk 0:01:09.7]} 19... Rae8 {[%clk 0:02:26.4]} 20. Bf3 {[%clk 0:00:39.2]}
20... Qh4 {[%clk 0:02:20.7]} 21. Kg2 {[%clk 0:00:34.4]} 21... Re1 {[%clk
0:02:17.2]} 22. Nd4 {[%clk 0:00:23.4]} 22... Rfe8 {[%clk 0:02:12.8]} 23. b3
{[%clk 0:00:16.3]} 23... Rg1+ {[%clk 0:01:59.2]} 24. Kxg1 {[%clk 0:00:14.1]}
24... Qg3+ {[%clk 0:02:00.1]} 25. Bg2 {[%clk 0:00:13.1]} 25... Re1# {[%clk
0:02:01]} 0-1

[Event "*** SCC Grand Prix: Titled Tuesday Blitz"]
[Site "Chess.com"]
[Date "2020.07.07"]
[Round "3"]
[White "SharapovEvgeny"]
[Black "ChessLover0108"]
[Result "1-0"]
[WhiteElo "2420"]
[BlackElo "2695"]
[TimeControl "180+1"]
[EndTime "10:26:48 PDT"]
[Termination "SharapovEvgeny won by resignation"]

1. e4 {[%clk 0:02:59.9]} 1... d5 {[%clk 0:02:59.4]} 2. exd5 {[%clk 0:02:59.2]}
2... Qxd5 {[%clk 0:03:00.3]} 3. Nc3 {[%clk 0:02:59.2]} 3... Qd8 {[%clk
0:03:00.8]} 4. d4 {[%clk 0:02:58.9]} 4... c6 {[%clk 0:03:00.9]} 5. Nf3 {[%clk
0:02:58.9]} 5... Bg4 {[%clk 0:03:01.3]} 6. Be3 {[%clk 0:02:57.2]} 6... Nf6
{[%clk 0:03:00.9]} 7. h3 {[%clk 0:02:57]} 7... Bxf3 {[%clk 0:03:01.4]} 8. Qxf3
{[%clk 0:02:56.4]} 8... e6 {[%clk 0:03:02.3]} 9. O-O-O {[%clk 0:02:55.3]} 9...
Nbd7 {[%clk 0:03:02.8]} 10. Kb1 {[%clk 0:02:54.9]} 10... Bd6 {[%clk 0:02:55.7]}
11. g4 {[%clk 0:02:52.8]} 11... Qc7 {[%clk 0:02:43.7]} 12. g5 {[%clk 0:02:51.4]}
12... Nd5 {[%clk 0:02:40.9]} 13. Ne4 {[%clk 0:02:50.8]} 13... Be7 {[%clk
0:02:04.3]} 14. Bc1 {[%clk 0:02:49.4]} 14... b5 {[%clk 0:01:53.9]} 15. h4 {[%clk
0:02:46.6]} 15... a5 {[%clk 0:01:47.9]} 16. h5 {[%clk 0:02:45.5]} 16... Rf8
{[%clk 0:01:10.3]} 17. g6 {[%clk 0:02:40.1]} 17... fxg6 {[%clk 0:01:02.6]} 18.
Qg4 {[%clk 0:02:39.3]} 18... N7f6 {[%clk 0:00:59.7]} 19. Nxf6+ {[%clk
0:02:38.1]} 19... Rxf6 {[%clk 0:00:59.4]} 20. hxg6 {[%clk 0:02:36.8]} 20... Rxg6
{[%clk 0:01:00.3]} 21. Qe4 {[%clk 0:02:29]} 21... O-O-O {[%clk 0:00:27.1]} 22.
Rxh7 {[%clk 0:02:27.1]} 22... Rf6 {[%clk 0:00:24.3]} 23. Rxg7 {[%clk 0:02:25.5]}
23... Rdf8 {[%clk 0:00:13.2]} 24. Bh3 {[%clk 0:02:20.9]} 24... Nf4 {[%clk
0:00:04]} 25. Bxf4 {[%clk 0:02:17.9]} 25... Rxf4 {[%clk 0:00:04.9]} 26. Qxe6+
{[%clk 0:02:16]} 26... Kd8 {[%clk 0:00:05.4]} 27. Rxe7 {[%clk 0:02:14.1]} 1-0

[Event "*** SCC Grand Prix: Titled Tuesday Blitz"]
[Site "Chess.com"]
[Date "2020.07.07"]
[Round "3"]
[White "dopolian"]
[Black "Nf3c5"]
[Result "0-1"]
[WhiteElo "2410"]
[BlackElo "2615"]
[TimeControl "180+1"]
[EndTime "10:26:50 PDT"]
[Termination "Nf3c5 won by resignation"]

1. Nf3 {[%clk 0:03:00.9]} 1... c5 {[%clk 0:02:56.1]} 2. c4 {[%clk 0:03:01]} 2...
g6 {[%clk 0:02:55.5]} 3. Nc3 {[%clk 0:03:00.7]} 3... Bg7 {[%clk 0:02:55.2]} 4.
g3 {[%clk 0:03:01.2]} 4... Nc6 {[%clk 0:02:54.3]} 5. Bg2 {[%clk 0:03:01.5]} 5...
d6 {[%clk 0:02:54.8]} 6. O-O {[%clk 0:03:01.8]} 6... Be6 {[%clk 0:02:55.1]} 7.
b3 {[%clk 0:02:57.6]} 7... Qc8 {[%clk 0:02:54.7]} 8. Re1 {[%clk 0:02:51.5]} 8...
Bh3 {[%clk 0:02:54.5]} 9. Bh1 {[%clk 0:02:51.7]} 9... h5 {[%clk 0:02:49.1]} 10.
Bb2 {[%clk 0:02:50.5]} 10... h4 {[%clk 0:02:48.5]} 11. Rb1 {[%clk 0:02:46.2]}
11... hxg3 {[%clk 0:02:46.5]} 12. hxg3 {[%clk 0:02:47]} 12... Qf5 {[%clk
0:02:38.7]} 13. Nd5 {[%clk 0:02:34.2]} 13... Kf8 {[%clk 0:02:36.4]} 14. Bxg7+
{[%clk 0:02:31.7]} 14... Kxg7 {[%clk 0:02:37.3]} 15. d4 {[%clk 0:02:28.5]} 15...
e5 {[%clk 0:02:27.9]} 16. dxc5 {[%clk 0:02:26.1]} 16... dxc5 {[%clk 0:02:26.6]}
17. Qd2 {[%clk 0:02:11.8]} 17... Bg4 {[%clk 0:02:19.1]} 18. Ne3 {[%clk
0:02:02.7]} 18... Rxh1+ {[%clk 0:01:47.5]} 19. Kxh1 {[%clk 0:01:54]} 19... Bxf3+
{[%clk 0:01:47.6]} 20. exf3 {[%clk 0:01:50.8]} 20... Qh3+ {[%clk 0:01:41.6]} 21.
Kg1 {[%clk 0:01:49.3]} 21... Nd4 {[%clk 0:01:42.5]} 22. Qd1 {[%clk 0:01:40.1]}
22... Nf6 {[%clk 0:01:41.9]} 23. Ng2 {[%clk 0:00:41.2]} 23... Rh8 {[%clk
0:01:38.1]} 24. Nh4 {[%clk 0:00:40.8]} 24... Rxh4 {[%clk 0:01:37.5]} 25. gxh4
{[%clk 0:00:39.3]} 25... Nxf3+ {[%clk 0:01:37.3]} 26. Qxf3 {[%clk 0:00:39.2]}
26... Qxf3 {[%clk 0:01:38.2]} 0-1

[Event "*** SCC Grand Prix: Titled Tuesday Blitz"]
[Site "Chess.com"]
[Date "2020.07.07"]
[Round "3"]
[White "bascheyaro"]
[Black "Firouzja2003"]
[Result "0-1"]
[WhiteElo "2694"]
[BlackElo "3111"]
[TimeControl "180+1"]
[EndTime "10:26:51 PDT"]
[Termination "Firouzja2003 won by resignation"]

1. d4 {[%clk 0:03:00.9]} 1... Nf6 {[%clk 0:02:59.4]} 2. c4 {[%clk 0:03:01.2]}
2... g6 {[%clk 0:02:59.3]} 3. Nf3 {[%clk 0:03:01.3]} 3... Bg7 {[%clk 0:02:59.6]}
4. Bf4 {[%clk 0:03:01.6]} 4... c5 {[%clk 0:02:55.8]} 5. e3 {[%clk 0:03:01.6]}
5... cxd4 {[%clk 0:02:51.2]} 6. Nxd4 {[%clk 0:03:01]} 6... e5 {[%clk 0:02:49.1]}
7. Bxe5 {[%clk 0:02:30.7]} 7... Qa5+ {[%clk 0:02:48.4]} 8. Nc3 {[%clk
0:02:31.2]} 8... Qxe5 {[%clk 0:02:48.2]} 9. Ndb5 {[%clk 0:02:31]} 9... O-O
{[%clk 0:02:46.6]} 10. Qd6 {[%clk 0:02:27.5]} 10... Qxd6 {[%clk 0:02:42.9]} 11.
Nxd6 {[%clk 0:02:28.4]} 11... Nc6 {[%clk 0:02:42.4]} 12. O-O-O {[%clk
0:02:26.9]} 12... Ne8 {[%clk 0:02:37.6]} 13. Nxc8 {[%clk 0:02:23.5]} 13... Rxc8
{[%clk 0:02:37.3]} 14. Rxd7 {[%clk 0:02:24.1]} 14... Bxc3 {[%clk 0:02:36.8]} 15.
bxc3 {[%clk 0:02:23.9]} 15... Na5 {[%clk 0:02:36.8]} 16. Kc2 {[%clk 0:02:19.5]}
16... Nf6 {[%clk 0:02:36.6]} 17. Rd4 {[%clk 0:02:19.5]} 17... Rc7 {[%clk
0:02:36]} 18. Be2 {[%clk 0:02:18.2]} 18... Rfc8 {[%clk 0:02:35.7]} 19. Rb1
{[%clk 0:02:18.3]} 19... b6 {[%clk 0:02:35.5]} 20. Rf4 {[%clk 0:02:09.7]} 20...
Kg7 {[%clk 0:02:34.9]} 21. Rb4 {[%clk 0:02:04.1]} 21... Nd7 {[%clk 0:02:34.7]}
22. h4 {[%clk 0:01:58.1]} 22... Ne5 {[%clk 0:02:34.2]} 23. h5 {[%clk 0:01:53.8]}
23... Nexc4 {[%clk 0:02:34.1]} 24. Bxc4 {[%clk 0:01:47.8]} 24... Nxc4 {[%clk
0:02:31.9]} 25. hxg6 {[%clk 0:01:44.9]} 25... hxg6 {[%clk 0:02:31.9]} 26. Rb3
{[%clk 0:01:32.5]} 26... Na5 {[%clk 0:02:30.9]} 27. Ra3 {[%clk 0:01:32.8]} 27...
Rc4 {[%clk 0:02:31.5]} 28. Rf3 {[%clk 0:01:32.6]} 28... f5 {[%clk 0:02:30]} 29.
Rh3 {[%clk 0:01:32.5]} 29... Rd8 {[%clk 0:02:29]} 30. Rh1 {[%clk 0:01:31.1]}
30... Rc5 {[%clk 0:02:29]} 31. Ra4 {[%clk 0:01:29.6]} 31... Rc4 {[%clk
0:02:26.9]} 32. Rb4 {[%clk 0:01:24.3]} 32... Rxb4 {[%clk 0:02:26]} 33. cxb4
{[%clk 0:01:24.6]} 33... Nc4 {[%clk 0:02:25]} 34. Kc3 {[%clk 0:01:25]} 34... Ne5
{[%clk 0:02:25.1]} 35. Re1 {[%clk 0:01:13.8]} 35... Rd3+ {[%clk 0:02:24.1]} 36.
Kc2 {[%clk 0:01:13.3]} 36... Ra3 {[%clk 0:02:24.2]} 37. Kb1 {[%clk 0:01:13.7]}
37... Ra4 {[%clk 0:02:22.5]} 38. Rd1 {[%clk 0:01:14.1]} 38... Rxb4+ {[%clk
0:02:22.9]} 39. Kc2 {[%clk 0:01:14.6]} 39... Rc4+ {[%clk 0:02:18.1]} 40. Kb3
{[%clk 0:01:14.8]} 40... Rc7 {[%clk 0:02:18.2]} 41. f3 {[%clk 0:01:12.4]} 41...
Nd7 {[%clk 0:02:17.7]} 42. Rd2 {[%clk 0:01:09.8]} 42... Nc5+ {[%clk 0:02:18.6]}
43. Kb4 {[%clk 0:01:10.1]} 43... Re7 {[%clk 0:02:18.9]} 44. a4 {[%clk
0:01:04.4]} 44... Rxe3 {[%clk 0:02:17.3]} 45. a5 {[%clk 0:01:04.9]} 45... Rd3
{[%clk 0:02:15.6]} 46. Re2 {[%clk 0:01:03.5]} 46... Kf6 {[%clk 0:02:15.5]} 47.
Kb5 {[%clk 0:00:58.3]} 47... Rb3+ {[%clk 0:02:15.2]} 48. Kc4 {[%clk 0:00:58.6]}
48... Rb1 {[%clk 0:02:15.1]} 49. axb6 {[%clk 0:00:57.2]} 49... axb6 {[%clk
0:02:15.3]} 50. Re1 {[%clk 0:00:52.3]} 0-1

[Event "*** SCC Grand Prix: Titled Tuesday Blitz"]
[Site "Chess.com"]
[Date "2020.07.07"]
[Round "3"]
[White "A-Fier"]
[Black "NormWeinstein"]
[Result "1-0"]
[WhiteElo "2766"]
[BlackElo "2436"]
[TimeControl "180+1"]
[EndTime "10:26:51 PDT"]
[Termination "A-Fier won by resignation"]

1. e4 {[%clk 0:03:00.3]} 1... c5 {[%clk 0:02:59.7]} 2. Nf3 {[%clk 0:03:00.4]}
2... d6 {[%clk 0:03:00.1]} 3. d4 {[%clk 0:03:01.1]} 3... Nf6 {[%clk 0:02:59.9]}
4. Nc3 {[%clk 0:03:01]} 4... cxd4 {[%clk 0:03:00.3]} 5. Nxd4 {[%clk 0:03:01.8]}
5... Nc6 {[%clk 0:03:00.2]} 6. Bg5 {[%clk 0:03:01]} 6... e6 {[%clk 0:03:00.1]}
7. Qd2 {[%clk 0:02:59.8]} 7... Be7 {[%clk 0:03:00.5]} 8. O-O-O {[%clk
0:02:59.5]} 8... O-O {[%clk 0:03:01]} 9. f4 {[%clk 0:02:59.8]} 9... d5 {[%clk
0:03:01.3]} 10. e5 {[%clk 0:02:58.8]} 10... Nd7 {[%clk 0:03:01.2]} 11. h4 {[%clk
0:02:57.1]} 11... Nb6 {[%clk 0:03:01.5]} 12. Nf3 {[%clk 0:02:53.4]} 12... Bd7
{[%clk 0:02:59.4]} 13. Bd3 {[%clk 0:02:53.4]} 13... Nb4 {[%clk 0:02:58.2]} 14.
Bxh7+ {[%clk 0:02:37.9]} 14... Kxh7 {[%clk 0:02:54.9]} 15. a3 {[%clk 0:02:38.8]}
15... f6 {[%clk 0:02:27.1]} 16. axb4 {[%clk 0:02:37.8]} 16... fxg5 {[%clk
0:02:26]} 17. hxg5+ {[%clk 0:02:37.7]} 17... Kg8 {[%clk 0:02:18]} 18. Qd3 {[%clk
0:02:37.9]} 18... Kf7 {[%clk 0:01:59.5]} 19. Nd4 {[%clk 0:02:23.7]} 19... Bxb4
{[%clk 0:01:17.5]} 20. Rh7 {[%clk 0:02:20.4]} 20... Bxc3 {[%clk 0:01:06.8]} 21.
Rdh1 {[%clk 0:02:06.4]} 21... Rg8 {[%clk 0:00:57.5]} 22. R1h6 {[%clk 0:02:03.6]}
22... Qf8 {[%clk 0:00:45.6]} 23. Rf6+ {[%clk 0:01:56.7]} 23... Ke7 {[%clk
0:00:44.9]} 24. Qxc3 {[%clk 0:01:55.9]} 24... Qc8 {[%clk 0:00:37.8]} 25. Qb4+
{[%clk 0:01:55.2]} 25... Ke8 {[%clk 0:00:37.9]} 26. Rxg7 {[%clk 0:01:52.6]} 1-0

[Event "*** SCC Grand Prix: Titled Tuesday Blitz"]
[Site "Chess.com"]
[Date "2020.07.07"]
[Round "3"]
[White "Ze-Pequeno"]
[Black "talman67"]
[Result "1-0"]
[WhiteElo "2245"]
[BlackElo "2482"]
[TimeControl "180+1"]
[EndTime "10:26:51 PDT"]
[Termination "Ze-Pequeno won by resignation"]

1. e4 {[%clk 0:02:59.2]} 1... e5 {[%clk 0:02:59.7]} 2. Nf3 {[%clk 0:02:59]} 2...
Nc6 {[%clk 0:03:00.2]} 3. Bb5 {[%clk 0:02:58.4]} 3... a6 {[%clk 0:02:59.7]} 4.
Ba4 {[%clk 0:02:58.4]} 4... Nf6 {[%clk 0:03:00]} 5. O-O {[%clk 0:02:57.9]} 5...
Nxe4 {[%clk 0:03:00.5]} 6. d4 {[%clk 0:02:57.1]} 6... b5 {[%clk 0:03:00.5]} 7.
Bb3 {[%clk 0:02:55.4]} 7... d5 {[%clk 0:03:01.4]} 8. dxe5 {[%clk 0:02:55]} 8...
Be6 {[%clk 0:03:02]} 9. Nbd2 {[%clk 0:02:54.6]} 9... Nc5 {[%clk 0:03:00.4]} 10.
c3 {[%clk 0:02:36]} 10... d4 {[%clk 0:02:57.9]} 11. Ng5 {[%clk 0:02:30.7]} 11...
Qxg5 {[%clk 0:02:49.1]} 12. Qf3 {[%clk 0:02:26.3]} 12... Qxe5 {[%clk 0:02:35.7]}
13. Qxc6+ {[%clk 0:02:23.2]} 13... Kd8 {[%clk 0:02:08.1]} 14. Qxa8+ {[%clk
0:02:20.3]} 14... Bc8 {[%clk 0:02:08.6]} 15. Nf3 {[%clk 0:02:07.6]} 15... Qh5
{[%clk 0:02:08.7]} 16. Qd5+ {[%clk 0:01:53.3]} 16... Qxd5 {[%clk 0:02:07.2]} 17.
Bxd5 {[%clk 0:01:53.8]} 17... dxc3 {[%clk 0:02:08.1]} 18. bxc3 {[%clk
0:01:53.5]} 18... f6 {[%clk 0:02:07.8]} 19. Bf4 {[%clk 0:01:49.9]} 19... Bd6
{[%clk 0:02:00.9]} 20. Bxd6 {[%clk 0:01:49]} 20... cxd6 {[%clk 0:02:01.8]} 21.
Rfd1 {[%clk 0:01:46.8]} 21... Kc7 {[%clk 0:02:00.6]} 22. Nd4 {[%clk 0:01:43.7]}
22... Re8 {[%clk 0:02:00.5]} 23. Re1 {[%clk 0:01:43.4]} 23... Re5 {[%clk
0:02:00.9]} 24. Rxe5 {[%clk 0:01:39.3]} 24... fxe5 {[%clk 0:02:01.8]} 25. Nb3
{[%clk 0:01:39.7]} 25... Na4 {[%clk 0:01:56.9]} 26. Rc1 {[%clk 0:01:38.8]} 26...
Nb6 {[%clk 0:01:51.9]} 27. Bg8 {[%clk 0:01:35.9]} 27... h6 {[%clk 0:01:51.4]}
28. c4 {[%clk 0:01:33.7]} 28... bxc4 {[%clk 0:01:42.5]} 29. Bxc4 {[%clk
0:01:32.8]} 29... Kd7 {[%clk 0:01:42.9]} 30. f3 {[%clk 0:01:23.3]} 30... Bb7
{[%clk 0:01:42.9]} 31. Kf2 {[%clk 0:01:22.5]} 31... d5 {[%clk 0:01:35.5]} 32.
Bd3 {[%clk 0:01:21.8]} 32... Kd6 {[%clk 0:01:35.4]} 33. Na5 {[%clk 0:01:20.3]}
33... Ba8 {[%clk 0:01:32]} 34. Bxa6 {[%clk 0:01:18.7]} 34... d4 {[%clk
0:01:32.9]} 35. Bb7 {[%clk 0:01:17]} 35... Bxb7 {[%clk 0:01:31.3]} 36. Nxb7+
{[%clk 0:01:17.1]} 36... Kd5 {[%clk 0:01:32.2]} 37. Rc5+ {[%clk 0:01:17.1]} 1-0

[Event "*** SCC Grand Prix: Titled Tuesday Blitz"]
[Site "Chess.com"]
[Date "2020.07.07"]
[Round "3"]
[White "Bhagya_2312"]
[Black "Ceejay271"]
[Result "0-1"]
[WhiteElo "2120"]
[BlackElo "2332"]
[TimeControl "180+1"]
[EndTime "10:26:51 PDT"]
[Termination "Ceejay271 won by resignation"]

1. e4 {[%clk 0:02:59.2]} 1... c5 {[%clk 0:02:59.4]} 2. Nf3 {[%clk 0:02:59.1]}
2... Nc6 {[%clk 0:02:59.6]} 3. d4 {[%clk 0:02:59.2]} 3... cxd4 {[%clk
0:03:00.5]} 4. Nxd4 {[%clk 0:02:59.4]} 4... g6 {[%clk 0:03:01.1]} 5. Be2 {[%clk
0:02:58.1]} 5... Bg7 {[%clk 0:03:00.3]} 6. Nb3 {[%clk 0:02:58]} 6... Nf6 {[%clk
0:02:59.3]} 7. Nc3 {[%clk 0:02:58.5]} 7... O-O {[%clk 0:02:58.4]} 8. O-O {[%clk
0:02:58.4]} 8... b6 {[%clk 0:02:55.8]} 9. Re1 {[%clk 0:02:56.2]} 9... Bb7 {[%clk
0:02:55.7]} 10. Bf1 {[%clk 0:02:49.4]} 10... Rc8 {[%clk 0:02:55]} 11. e5 {[%clk
0:02:38.8]} 11... Ne8 {[%clk 0:02:50.6]} 12. f4 {[%clk 0:02:33.2]} 12... d6
{[%clk 0:02:49.9]} 13. exd6 {[%clk 0:02:10.9]} 13... Nxd6 {[%clk 0:02:49.7]} 14.
Nd5 {[%clk 0:02:08.9]} 14... Nf5 {[%clk 0:02:43.3]} 15. c4 {[%clk 0:01:32.8]}
15... e6 {[%clk 0:02:38.7]} 16. Nc3 {[%clk 0:01:32.2]} 16... Ncd4 {[%clk
0:02:28.5]} 17. Bd3 {[%clk 0:01:20.1]} 17... Qc7 {[%clk 0:02:13.4]} 18. Nxd4
{[%clk 0:01:03.6]} 18... Bxd4+ {[%clk 0:02:08.5]} 19. Kh1 {[%clk 0:01:03.1]}
19... Bxc3 {[%clk 0:02:02.1]} 20. bxc3 {[%clk 0:01:02.4]} 20... Rfd8 {[%clk
0:02:01.7]} 21. Qe2 {[%clk 0:01:01.4]} 21... Qc6 {[%clk 0:01:55]} 22. Rd1 {[%clk
0:00:43.2]} 22... Nh4 {[%clk 0:01:43.5]} 23. Rg1 {[%clk 0:00:33.4]} 23... Nxg2
{[%clk 0:01:43]} 0-1

[Event "*** SCC Grand Prix: Titled Tuesday Blitz"]
[Site "Chess.com"]
[Date "2020.07.07"]
[Round "3"]
[White "anesar92"]
[Black "DariaVoit"]
[Result "1-0"]
[WhiteElo "2723"]
[BlackElo "2482"]
[TimeControl "180+1"]
[EndTime "10:26:55 PDT"]
[Termination "anesar92 won by resignation"]

1. e4 {[%clk 0:03:00.9]} 1... e6 {[%clk 0:03:00.2]} 2. d4 {[%clk 0:02:59.3]}
2... d5 {[%clk 0:03:00.5]} 3. Nc3 {[%clk 0:02:58.5]} 3... Bb4 {[%clk 0:03:00.2]}
4. exd5 {[%clk 0:02:58.6]} 4... exd5 {[%clk 0:03:00]} 5. Bd3 {[%clk 0:02:58.5]}
5... c5 {[%clk 0:03:00.2]} 6. dxc5 {[%clk 0:02:57.7]} 6... d4 {[%clk 0:02:59.2]}
7. a3 {[%clk 0:02:58]} 7... Ba5 {[%clk 0:02:58.3]} 8. b4 {[%clk 0:02:55.2]} 8...
dxc3 {[%clk 0:02:58.5]} 9. bxa5 {[%clk 0:02:54.1]} 9... Nf6 {[%clk 0:02:54.4]}
10. Nf3 {[%clk 0:02:49.9]} 10... O-O {[%clk 0:02:52.6]} 11. O-O {[%clk
0:02:48.8]} 11... Qxa5 {[%clk 0:02:52.6]} 12. Bf4 {[%clk 0:02:37.4]} 12... Na6
{[%clk 0:02:25.5]} 13. Bd6 {[%clk 0:02:18.9]} 13... Re8 {[%clk 0:02:12.5]} 14.
Rb1 {[%clk 0:02:17.3]} 14... Qxa3 {[%clk 0:02:06.1]} 15. c6 {[%clk 0:02:05.1]}
15... Nc5 {[%clk 0:02:04.4]} 16. Bxc5 {[%clk 0:02:01.5]} 16... Qxc5 {[%clk
0:02:02.4]} 17. cxb7 {[%clk 0:02:01.8]} 17... Bxb7 {[%clk 0:02:02]} 18. Rxb7
{[%clk 0:02:02.7]} 18... a5 {[%clk 0:02:02.5]} 19. Qb1 {[%clk 0:01:58.1]} 19...
a4 {[%clk 0:01:59.8]} 20. Qa2 {[%clk 0:01:56.4]} 20... Re7 {[%clk 0:01:35.9]}
21. Rxe7 {[%clk 0:01:54.7]} 21... Qxe7 {[%clk 0:01:35.3]} 22. Re1 {[%clk
0:01:55.4]} 22... Qb4 {[%clk 0:01:29.6]} 23. Ng5 {[%clk 0:01:44]} 23... Ra7
{[%clk 0:01:22.7]} 24. Nxf7 {[%clk 0:01:20.3]} 1-0

[Event "*** SCC Grand Prix: Titled Tuesday Blitz"]
[Site "Chess.com"]
[Date "2020.07.07"]
[Round "3"]
[White "MisiekZielony"]
[Black "Nafania1"]
[Result "0-1"]
[WhiteElo "2188"]
[BlackElo "2451"]
[TimeControl "180+1"]
[EndTime "10:27:03 PDT"]
[Termination "Nafania1 won on time"]

1. c4 {[%clk 0:03:00]} 1... c5 {[%clk 0:02:58.7]} 2. Nc3 {[%clk 0:03:00]} 2...
Nc6 {[%clk 0:02:58.2]} 3. g3 {[%clk 0:03:00.4]} 3... g6 {[%clk 0:02:58.4]} 4.
Bg2 {[%clk 0:03:00.9]} 4... Bg7 {[%clk 0:02:58.8]} 5. e4 {[%clk 0:03:01.5]} 5...
d6 {[%clk 0:02:54]} 6. Nge2 {[%clk 0:03:01.9]} 6... e6 {[%clk 0:02:53.8]} 7. O-O
{[%clk 0:03:01.8]} 7... Nge7 {[%clk 0:02:53.9]} 8. d3 {[%clk 0:03:02.3]} 8...
O-O {[%clk 0:02:53.9]} 9. f4 {[%clk 0:03:02.8]} 9... b6 {[%clk 0:02:50.9]} 10.
Be3 {[%clk 0:03:00.5]} 10... Nd4 {[%clk 0:02:50.5]} 11. Rb1 {[%clk 0:02:15]}
11... Bb7 {[%clk 0:02:49.5]} 12. b4 {[%clk 0:02:14.7]} 12... Qd7 {[%clk
0:02:47.6]} 13. h3 {[%clk 0:02:13.1]} 13... f5 {[%clk 0:02:39.7]} 14. Kh2 {[%clk
0:02:11.4]} 14... Rad8 {[%clk 0:02:36.8]} 15. Bg1 {[%clk 0:02:03.9]} 15... h6
{[%clk 0:02:21.7]} 16. Nxd4 {[%clk 0:01:54.7]} 16... cxd4 {[%clk 0:02:21.3]} 17.
Nb5 {[%clk 0:01:50.5]} 17... Nc6 {[%clk 0:02:20.8]} 18. exf5 {[%clk 0:01:48.3]}
18... gxf5 {[%clk 0:02:14]} 19. Qh5 {[%clk 0:01:21.3]} 19... a6 {[%clk
0:02:10.8]} 20. Na3 {[%clk 0:01:21]} 20... Ne7 {[%clk 0:01:59.6]} 21. Bxb7
{[%clk 0:01:15.8]} 21... Qxb7 {[%clk 0:01:59.5]} 22. g4 {[%clk 0:01:03.8]} 22...
e5 {[%clk 0:01:55.4]} 23. fxe5 {[%clk 0:00:58.5]} 23... Bxe5+ {[%clk 0:01:54.2]}
0-1

[Event "*** SCC Grand Prix: Titled Tuesday Blitz"]
[Site "Chess.com"]
[Date "2020.07.07"]
[Round "3"]
[White "Durarbayli"]
[Black "FrenchMonster2002"]
[Result "1-0"]
[WhiteElo "2797"]
[BlackElo "2441"]
[TimeControl "180+1"]
[EndTime "10:27:06 PDT"]
[Termination "Durarbayli won by resignation"]

1. e4 {[%clk 0:03:00.9]} 1... g6 {[%clk 0:02:58.5]} 2. d4 {[%clk 0:03:00.4]}
2... Bg7 {[%clk 0:02:59]} 3. Nc3 {[%clk 0:03:01.3]} 3... a6 {[%clk 0:02:59.5]}
4. Be3 {[%clk 0:03:01.3]} 4... b5 {[%clk 0:02:59.7]} 5. h4 {[%clk 0:03:01.1]}
5... h6 {[%clk 0:02:57.7]} 6. f4 {[%clk 0:02:57.9]} 6... h5 {[%clk 0:02:57.5]}
7. g4 {[%clk 0:02:48.1]} 7... hxg4 {[%clk 0:02:53.3]} 8. Bg2 {[%clk 0:02:47.4]}
8... Bb7 {[%clk 0:02:47.9]} 9. Qxg4 {[%clk 0:02:46.1]} 9... Nf6 {[%clk
0:02:44.5]} 10. Qe2 {[%clk 0:02:37.8]} 10... b4 {[%clk 0:02:43]} 11. e5 {[%clk
0:02:31.1]} 11... Bxg2 {[%clk 0:02:21.7]} 12. Qxg2 {[%clk 0:02:32]} 12... bxc3
{[%clk 0:01:38.4]} 13. exf6 {[%clk 0:02:30.3]} 13... cxb2 {[%clk 0:01:37.1]} 14.
Rb1 {[%clk 0:02:29.8]} 14... Bxf6 {[%clk 0:01:29.5]} 15. Qxa8 {[%clk 0:02:27.5]}
15... Bxh4+ {[%clk 0:00:32.9]} 16. Ke2 {[%clk 0:02:24.1]} 16... Nc6 {[%clk
0:00:13.9]} 17. Qxd8+ {[%clk 0:02:21.4]} 17... Kxd8 {[%clk 0:00:14.8]} 18. Nf3
{[%clk 0:02:21]} 18... Bf6 {[%clk 0:00:14.2]} 19. Rxh8+ {[%clk 0:02:21.9]} 19...
Bxh8 {[%clk 0:00:14.9]} 20. Rxb2 {[%clk 0:02:22.5]} 20... Kc8 {[%clk 0:00:11.7]}
21. Ne5 {[%clk 0:02:18.5]} 21... Na5 {[%clk 0:00:06.8]} 22. Nxf7 {[%clk
0:02:14.4]} 22... Bf6 {[%clk 0:00:06.6]} 23. Ne5 {[%clk 0:02:14.2]} 23... c5
{[%clk 0:00:02.6]} 24. c3 {[%clk 0:02:08.6]} 24... d6 {[%clk 0:00:02]} 25. Nxg6
{[%clk 0:02:07.7]} 25... Nc4 {[%clk 0:00:02.7]} 26. Rc2 {[%clk 0:02:04.7]} 26...
Nxe3 {[%clk 0:00:01.9]} 27. Kxe3 {[%clk 0:02:04.6]} 27... cxd4+ {[%clk
0:00:02.5]} 28. cxd4+ {[%clk 0:02:04.7]} 28... Kd7 {[%clk 0:00:03.4]} 29. f5
{[%clk 0:02:04.4]} 1-0